bitfinex-derivatives/quotes_ETHF0:USTF0_20251119
["timestamp","ask_amount","ask_price","bid_price","bid_amount"]
[1763587528523,3.2078,2989.2,2988.9,0.00501287]
[1763587529018,3.2078,2989.8,2989.0,3.2078]
[1763587529219,3.2078,2990.1,2989.7,0.54245]
[1763587529813,3.2078,2990.4,2989.7,0.54245]
[1763587530014,3.2078,2990.4,2989.4,3.2078]
[1763587530520,3.2078,2989.8,2989.2,1.3913]
[1763587530817,3.2078,2990.2,2989.7,0.54247]
[1763587531123,3.2078,2989.9,2989.2,1.3913]
[1763587531318,3.2078,2989.9,2989.4,3.2078]
[1763587531518,3.2078,2989.9,2989.3,0.54254]
[1763587531915,3.2078,2990.3,2989.4,3.75032]
[1763587532120,3.2078,2990.3,2989.4,3.2078]
[1763587532320,3.2078,2989.9,2989.2,1.3913]
[1763587532918,3.2078,2989.9,2989.6,0.54248]
[1763587533224,0.00358405,2990.6,2990.5,0.54232]
[1763587533419,3.21138405,2990.6,2989.8,0.54245]
[1763587533617,0.00358405,2990.6,2989.2,4.5991]
[1763587533818,3.21138405,2990.6,2989.6,0.54248]
[1763587534019,3.2078,2990.4,2989.8,0.54244]
[1763587534526,0.00358405,2990.6,2989.9,3.2078]
[1763587534718,0.00358405,2990.6,2990.4,0.54233]
[1763587535622,0.00358405,2990.6,2989.3,3.2078]
[1763587535827,3.2078,2990.3,2989.3,3.2078]
[1763587536025,3.21138405,2990.6,2989.9,0.54242]
[1763587536229,3.21138405,2990.6,2990.2,0.54237]
[1763587536419,3.2078,2991.4,2991.0,0.54223]
[1763587536722,3.2078,2991.6,2990.9,1.4101]
[1763587537127,3.2078,2991.3,2990.9,1.4101]
[1763587537531,3.2078,2991.0,2990.9,0.00387706]
[1763587538226,3.2078,2991.0,2990.1,3.2078]
[1763587538426,3.2078,2989.6,2987.2,3.2078]
[1763587538626,3.2078,2989.6,2988.0,0.9299]
[1763587538627,3.2078,2988.3,2988.0,0.9299]
[1763587538927,3.2078,2988.5,2988.0,0.9299]
[1763587539120,3.2078,2989.2,2988.1,3.2078]
[1763587539326,0.00501287,2988.9,2988.4,0.00501287]
[1763587539928,3.2078,2990.4,2988.7,3.2078]
[1763587540117,3.2078,2990.0,2989.2,4.6179]
[1763587540322,3.2078,2990.0,2989.3,0.54253]
[1763587540529,3.2078,2990.3,2989.5,3.2078]
[1763587540828,3.2078,2990.5,2990.0,0.54241]
[1763587541124,0.00799751,2990.5,2990.4,1.4101]
[1763587541329,3.2078,2991.4,2990.4,4.62217201]
[1763587541527,3.2078,2991.0,2990.4,4.62217201]
[1763587541722,3.2078,2991.0,2990.4,5.16451201]
[1763587542126,3.2078,2991.5,2990.4,5.16451201]
[1763587542329,3.2078,2991.2,2990.4,1.95671201]
[1763587542632,0.00501287,2991.1,2990.6,0.54229]
[1763587542930,1.287e-05,2991.1,2990.4,4.62217201]
[1763587544433,3.2078,2990.9,2990.4,1.41437201]
[1763587544726,3.2078,2991.9,2990.7,3.2078]
[1763587544930,3.2078,2992.2,2991.4,3.2078]
[1763587545129,3.2078,2992.2,2991.4,3.74996]
[1763587545329,3.2078,2992.6,2991.8,3.2078]
[1763587545529,3.2078,2992.3,2991.8,3.74989]
[1763587546031,3.2078,2993.6,2992.2,3.2078]
[1763587546234,3.2078,2993.2,2992.2,3.2078]
[1763587546534,3.2078,2992.9,2992.2,3.2078]
[1763587546729,3.2078,2993.2,2992.2,3.2078]
[1763587546936,3.2078,2992.8,2992.4,0.00501287]
[1763587548330,0.00326959,2993.0,2992.4,0.00501287]
[1763587548835,3.2078,2992.7,2992.4,0.00501287]
[1763587549032,3.21106959,2993.0,2992.4,0.00501287]
[1763587549532,3.2078,2992.7,2992.4,0.00501287]
[1763587549727,0.54197,2992.5,2991.2,3.2078]
[1763587550032,0.54197,2992.5,2990.8,3.2078]
[1763587550033,3.2078,2991.9,2990.8,3.2078]
[1763587550234,3.2078,2991.3,2990.5,3.2078]
[1763587550634,3.2078,2991.6,2990.9,3.2078]
[1763587550837,0.00501287,2991.5,2991.0,0.00501287]
[1763587553442,0.00501287,2991.5,2991.3,3.2078]
[1763587553635,3.2078,2992.5,2991.3,3.2078]
[1763587553836,3.2078,2992.1,2991.2,3.2078]
[1763587554140,3.62640067,2992.9,2991.0,3.88001287]
[1763587554141,3.2078,2991.9,2991.0,0.00501287]
[1763587554334,3.2078,2991.9,2991.0,3.21281287]
[1763587554536,3.2078,2991.6,2991.0,3.21281287]
[1763587554733,3.21106959,2991.6,2991.0,0.00501287]
[1763587555039,3.21106959,2991.6,2991.0,3.21281287]
[1763587555434,3.21106959,2991.6,2991.0,0.00501287]
[1763587555839,3.2078,2991.3,2991.0,0.00501287]
[1763587557040,9.74998,2991.3,2990.4,0.00427201]
[1763587557233,3.2078,2990.5,2990.4,0.00427201]
[1763587557441,3.2078,2990.5,2989.3,3.2078]
[1763587557636,3.2078,2990.0,2989.4,3.2078]
[1763587558035,3.21281287,2990.0,2989.4,3.21281287]
[1763587558233,3.21281287,2990.0,2989.4,0.00501287]
[1763587558432,3.21281287,2990.0,2989.4,0.0034351]
[1763587558643,0.00799694,2990.0,2989.7,3.2078]
[1763587558841,3.2078,2991.3,2989.9,0.54242]
[1763587559142,3.2078,2991.3,2990.3,3.2078]
[1763587559447,3.2078,2991.7,2990.8,3.2078]
[1763587559646,3.2078,2991.4,2990.5,3.75011]
[1763587559939,3.2078,2991.1,2990.7,0.00501287]
[1763587560144,0.00501287,2991.2,2990.7,0.00501287]
[1763587560335,3.2078,2991.0,2990.7,0.00501287]
[1763587560942,0.00501287,2991.2,2990.7,0.00501287]
[1763587561445,3.2078,2992.6,2991.4,0.54215]
[1763587561740,3.2078,2992.9,2992.1,3.2078]
[1763587561932,3.2078,2992.5,2990.9,1.4101]
[1763587562137,3.2078,2992.2,2991.2,3.2078]
[1763587562342,0.00326959,2992.0,2991.4,0.00501287]
[1763587562544,3.2078,2991.6,2991.4,0.00501287]
[1763587562748,3.2078,2991.6,2990.5,3.21032964]
[1763587562749,3.2078,2991.6,2990.5,0.00252964]
[1763587563042,0.54237,2990.3,2988.8,3.2078]
[1763587563240,3.2078,2989.6,2988.8,3.2078]
[1763587563442,3.62640067,2990.4,2988.8,3.2078]
[1763587563443,3.2078,2989.3,2988.8,3.2078]
[1763587563746,3.21281287,2989.3,2988.8,0.00501287]
[1763587563931,3.21652995,2989.3,2988.8,0.00743357]
[1763587564136,3.2078,2989.0,2988.8,0.00743357]
[1763587564338,0.54261,2988.9,2987.2,3.2078]
[1763587564641,3.2078,2987.7,2986.8,3.2078]
[1763587564846,7.94174342,2988.9,2986.5,3.2078]
[1763587564847,3.2078,2987.2,2986.5,3.2078]
[1763587565147,1.3662,2989.2,2985.8,3.2078]
[1763587565148,3.2078,2986.6,2985.8,3.2078]
[1763587565345,0.00502134,2986.5,2986.1,3.2078]
[1763587565846,3.2078,2986.3,2985.9,0.00502134]
[1763587566038,3.2078,2986.2,2985.9,0.00502134]
[1763587566743,3.2078,2986.3,2985.9,0.00502134]
[1763587567050,0.00502134,2986.5,2985.9,0.00502134]
[1763587567247,3.2078,2986.1,2985.9,0.00502134]
[1763587567743,0.00502134,2986.5,2985.9,0.00502134]
[1763587568248,3.2078,2986.4,2985.9,0.00502134]
[1763587568448,3.2078,2986.0,2985.9,0.00502134]
[1763587569146,3.2078,2986.0,2985.8,0.00259815]
[1763587569551,3.2078,2985.9,2985.8,0.00259815]
[1763587570648,6.0,2985.8,2984.3,3.2078]
[1763587570842,3.2078,2985.6,2984.7,3.2078]
[1763587571146,8.02742619,2985.5,2983.6,3.2078]
[1763587571346,7.60882552,2985.5,2983.9,3.2078]
[1763587571552,4.633,2985.6,2984.2,3.2078]
[1763587571746,3.2078,2984.7,2984.6,0.00502134]
[1763587572254,3.2078,2984.9,2984.6,0.00502134]
[1763587572951,6.0,2984.8,2984.6,0.00502134]
[1763587573252,3.21282134,2985.2,2984.6,0.00502134]
[1763587573455,3.2078,2985.0,2984.6,0.00502134]
[1763587573751,3.2078,2984.7,2984.6,0.00502134]
[1763587574141,9.2078,2984.7,2984.2,0.00392975]
[1763587574342,3.2078,2984.3,2984.2,0.00392975]
[1763587574542,3.21066712,2984.3,2984.2,0.00392975]
[1763587575055,3.2078,2985.0,2984.2,6.00392975]
[1763587575263,3.21282134,2985.2,2984.6,3.2078]
[1763587575551,0.00502134,2985.2,2984.3,0.00502134]
[1763587575754,3.2078,2984.6,2984.3,0.00502134]
[1763587576056,3.21101646,2984.6,2984.3,0.00502134]
[1763587576249,9.21101646,2984.6,2984.2,0.00392975]
[1763587576555,3.2078,2984.3,2984.2,0.00392975]
[1763587576746,3.2078,2984.3,2983.0,3.2078]
[1763587576948,3.2078,2983.5,2983.0,3.2078]
[1763587577147,0.00502134,2983.5,2983.4,3.2078]
[1763587577355,0.00502134,2983.5,2983.1,3.2078]
[1763587577756,0.00502134,2983.5,2983.1,0.00373776]
[1763587578153,3.21282134,2983.5,2983.1,0.00373776]
[1763587579253,4.6406,2983.2,2983.1,0.00373776]
[1763587579457,7.67781018,2983.2,2981.8,3.2078]
[1763587579658,3.2078,2982.5,2981.8,3.2078]
[1763587580048,6.24501018,2982.5,2981.8,3.2078]
[1763587580250,3.03721018,2982.0,2981.5,3.2078]
[1763587580450,3.2078,2981.7,2981.5,0.00295981]
[1763587580854,3.03721018,2981.8,2981.5,0.00295981]
[1763587581052,0.00890557,2982.0,2981.5,0.00295981]
[1763587581864,3.2078,2981.7,2981.5,0.00295981]
[1763587582654,3.2078,2981.7,2980.7,3.2078]
[1763587582655,6.0,2981.6,2980.7,3.2078]
[1763587582861,6.0,2981.6,2979.4,3.2078]
[1763587582862,6.24501018,2980.8,2979.4,3.2078]
[1763587583064,0.00502993,2980.4,2979.7,3.2078]
[1763587583259,0.00502993,2980.4,2979.4,3.2078]
[1763587583463,3.2078,2980.2,2979.3,3.2078]
[1763587583660,3.2078,2979.7,2979.3,0.00327042]
[1763587583963,3.2078,2979.4,2979.3,0.00327042]
[1763587584457,2.87390124,2979.4,2979.3,0.00327042]
[1763587584655,3.2078,2979.6,2979.3,0.00327042]
[1763587586062,3.2078,2979.5,2979.3,0.00327042]
[1763587586767,9.2078,2979.5,2978.0,3.2078]
[1763587586971,3.2078,2978.8,2978.0,3.2078]
[1763587587171,3.2078,2978.1,2976.7,3.2078]
[1763587587671,3.2078,2977.7,2976.7,0.00353222]
[1763587587864,0.00502993,2977.5,2977.2,3.2078]
[1763587588066,0.00769006,2977.5,2976.7,3.21133222]
[1763587588772,0.00769006,2977.5,2976.7,0.00353222]
[1763587588978,3.2078,2977.4,2976.7,0.00353222]
[1763587589567,0.00769006,2977.5,2976.9,3.2078]
[1763587589868,3.03721018,2979.0,2977.2,4.6096]
[1763587590074,3.2078,2978.5,2977.4,3.2078]
[1763587590270,3.03721018,2979.3,2977.5,3.2078]
[1763587590271,3.2078,2978.8,2977.5,3.2078]
[1763587590679,0.00289397,2978.8,2978.1,3.2078]
[1763587590973,0.00503845,2978.7,2978.6,3.2078]
[1763587591273,3.2078,2979.5,2978.6,3.2078]
[1763587591472,3.2078,2979.7,2978.9,3.2078]
[1763587591678,3.2078,2980.8,2979.6,1.4018]
[1763587591975,3.2078,2980.2,2979.0,3.2078]
[1763587592272,0.00503845,2979.9,2979.4,3.2078]
[1763587592979,3.2078,2980.8,2979.8,3.2078]
[1763587593378,3.2078,2981.5,2980.5,3.2078]
[1763587593673,3.2078,2981.8,2980.5,3.75194]
[1763587593878,3.2078,2981.3,2980.9,0.00503845]
[1763587594074,3.2078,2981.0,2980.9,0.00503845]
[1763587594980,3.2078,2981.3,2980.9,0.00503845]
[1763587595180,3.2078,2981.0,2980.9,0.00503845]
[1763587595982,0.00503845,2981.4,2980.9,6.00503845]
[1763587596278,0.00503845,2981.4,2981.1,3.2078]
[1763587596482,0.00264188,2981.8,2981.1,3.21149334]
[1763587596779,0.00264188,2981.8,2981.6,3.2078]
[1763587596979,3.2078,2982.7,2981.6,9.2078]
[1763587597175,3.2078,2982.7,2982.0,4.6828]
[1763587597370,0.00502951,2982.6,2982.3,3.2078]
[1763587597774,3.2078,2983.0,2982.3,9.2078]
[1763587597979,3.21049748,2983.0,2982.3,3.2078]
[1763587598785,3.2078,2982.6,2982.2,0.00502951]
[1763587599672,0.00502951,2982.9,2982.2,0.00502951]
[1763587599882,0.00502951,2982.9,2982.4,3.2078]
[1763587600081,2.951e-05,2982.9,2982.7,3.2078]
[1763587600382,3.2078,2983.8,2982.7,3.2078]
[1763587600584,3.2078,2983.8,2983.0,3.2078]
[1763587601171,0.00323186,2983.7,2983.1,0.00502951]
[1763587601377,0.00323186,2983.7,2983.2,1.475]
[1763587601577,0.00323186,2983.7,2983.2,1.47836363]
[1763587601779,0.00323186,2983.7,2983.3,3.2078]
[1763587602186,0.00323186,2983.7,2983.2,1.47836363]
[1763587603184,0.00323186,2983.7,2983.3,3.2078]
[1763587603386,3.2078,2984.5,2983.6,3.2078]
[1763587604287,3.21022041,2984.5,2983.6,3.2078]
[1763587604990,6.79420316,2987.0,2983.2,1.47836363]
[1763587604991,3.2078,2984.8,2984.3,1.475]
[1763587605188,3.2078,2984.8,2984.3,1.48002951]
[1763587605776,3.2078,2984.5,2984.3,1.48002951]
[1763587605984,3.21188051,2984.5,2984.3,1.48002951]
[1763587606177,0.00408051,2984.5,2984.3,1.48002951]
[1763587606382,0.00408051,2984.5,2984.3,0.00502951]
[1763587606979,3.2078,2985.6,2984.4,3.2078]
[1763587607485,3.2078,2985.6,2984.4,3.75123]
[1763587607992,3.2078,2985.3,2984.3,4.68782951]
[1763587608181,3.2078,2985.3,2984.3,3.21282951]
[1763587608382,3.2078,2985.5,2984.3,4.68782951]
[1763587608690,3.2078,2985.2,2984.4,3.2078]
[1763587608884,3.2078,2984.8,2984.3,0.00502951]
[1763587609985,3.2078,2985.1,2984.3,0.00502951]
[1763587610192,3.2078,2985.5,2984.3,0.00502951]
[1763587610391,3.2078,2985.1,2984.3,0.00502951]
[1763587610989,3.2078,2985.5,2984.4,3.2078]
[1763587611190,3.2078,2985.2,2984.4,3.2078]
[1763587611489,3.2078,2984.9,2984.4,3.2078]
[1763587612592,3.2078,2984.5,2984.3,0.00502951]
[1763587614387,0.54343,2984.4,2983.2,0.00336363]
[1763587614587,3.2078,2984.1,2983.2,0.00336363]
[1763587614787,3.2078,2984.4,2983.4,3.2078]
[1763587614984,4.50851018,2985.0,2983.4,3.2078]
[1763587614985,3.2078,2984.7,2983.4,3.2078]
[1763587615189,3.2078,2984.0,2983.2,0.00336363]
[1763587615393,0.00502951,2983.9,2983.3,0.00502951]
[1763587615696,0.00502951,2983.9,2983.5,3.2078]
[1763587615895,3.2078,2984.6,2983.5,3.2078]
[1763587616094,0.0042218,2985.6,2984.5,3.2078]
[1763587616297,3.2078,2985.5,2984.5,3.2078]
[1763587616496,3.2078,2985.1,2984.2,3.2078]
[1763587617195,3.2078,2985.5,2984.6,3.2078]
[1763587617391,3.2078,2985.2,2984.8,0.00502951]
[1763587617697,3.2078,2985.3,2984.8,0.00502951]
[1763587617897,0.54344,2984.4,2983.2,0.00336363]
[1763587618194,3.2078,2984.1,2983.2,0.00336363]
[1763587618395,3.2078,2984.0,2983.2,0.00336363]
[1763587618698,3.2078,2983.3,2983.2,0.00336363]
[1763587618900,3.21171412,2983.3,2983.2,0.00336363]
[1763587619596,3.21171412,2983.3,2983.0,0.00502951]
[1763587619996,3.21171412,2983.3,2982.3,3.2078]
[1763587620193,0.00391412,2983.3,2982.3,3.2078]
[1763587620393,3.2078,2982.6,2981.7,3.2078]
[1763587620598,3.2078,2982.6,2981.7,3.21166348]
[1763587620797,3.2078,2983.2,2982.1,3.2078]
[1763587621000,3.2078,2982.9,2982.4,0.00502951]
[1763587621398,3.2078,2983.2,2982.4,0.00502951]
[1763587621605,3.2078,2983.2,2982.4,3.21282951]
[1763587621808,0.00391412,2983.3,2982.7,3.2078]
[1763587622098,3.2078,2983.2,2982.7,3.2078]
[1763587622503,3.2078,2982.9,2982.4,0.00502951]
[1763587622801,3.2078,2982.6,2982.1,3.2078]
[1763587623311,3.2078,2982.2,2981.7,0.00386348]
[1763587623810,3.2078,2982.2,2981.7,0.00889299]
[1763587624302,3.2078,2982.5,2981.7,0.00889299]
[1763587624503,3.2078,2982.2,2981.7,0.00889299]
[1763587625303,3.2078,2982.6,2981.7,0.00889299]
[1763587625500,3.2078,2982.6,2981.9,3.2078]
[1763587625693,3.2078,2983.2,2982.2,3.2078]
[1763587625892,3.2078,2982.9,2982.2,3.2078]
[1763587627107,3.2078,2983.0,2981.9,3.2078]
[1763587627299,3.21171412,2983.3,2982.4,3.2078]
[1763587627499,0.00391412,2983.3,2982.7,3.2078]
[1763587627698,0.00391412,2983.3,2983.1,3.2078]
[1763587627997,3.2078,2982.4,2981.4,7.64594071]
[1763587628202,3.2078,2981.8,2980.1,0.5442]
[1763587628408,3.2078,2980.3,2980.0,1.475]
[1763587629004,2.33348685,2980.6,2980.0,7.475]
[1763587629310,1.5061,2983.0,2980.2,3.75198]
[1763587629311,3.2078,2981.0,2980.2,3.75198]
[1763587629708,3.2078,2980.9,2980.0,1.48308732]
[1763587629910,3.2078,2981.3,2980.1,3.2078]
[1763587630110,3.2078,2981.3,2980.0,5.23511732]
[1763587630309,0.00502951,2980.9,2980.0,5.23511732]
[1763587630513,3.2078,2980.8,2980.0,5.23511732]
[1763587630811,0.00502951,2980.9,2980.4,3.2078]
[1763587631211,3.21282951,2980.9,2980.1,3.2078]
[1763587633906,3.21282951,2980.9,2980.1,6.9468]
[1763587634409,3.21282951,2980.9,2980.1,3.2078]
[1763587634612,3.2078,2980.6,2980.0,1.48308732]
[1763587634810,3.2078,2980.1,2980.0,0.00808732]
[1763587635010,3.2078,2980.3,2980.0,0.00808732]
[1763587635314,3.2078,2980.6,2980.0,0.00808732]
[1763587635512,3.2078,2980.2,2980.0,0.00808732]
[1763587635710,3.21282951,2980.9,2980.0,4.65298732]
[1763587637610,3.21282951,2980.9,2980.0,1.44518732]
[1763587637611,3.2078,2980.6,2980.0,1.44518732]
[1763587638007,0.00502951,2980.9,2980.0,1.44518732]
[1763587638008,3.2078,2980.5,2980.0,1.44518732]
[1763587638512,3.2078,2980.2,2980.0,0.00808732]
[1763587638712,3.2078,2980.4,2980.0,0.00808732]
[1763587639520,0.00502951,2980.9,2980.0,0.00808732]
[1763587639521,3.2078,2980.1,2980.0,0.00808732]
[1763587640408,3.2078,2980.1,2979.0,4.6828]
[1763587640609,3.2078,2980.1,2979.3,3.2078]
[1763587640811,3.2078,2979.7,2978.8,0.22725]
[1763587641013,3.2078,2979.7,2979.0,1.4371]
[1763587641211,3.2078,2979.7,2979.2,0.54437]
[1763587641412,3.2078,2979.3,2979.2,0.00813455]
[1763587644324,3.2078,2979.3,2978.0,1.9817]
[1763587644325,3.2078,2979.3,2978.1,3.732]
[1763587644513,3.2078,2979.3,2978.0,1.9817]
[1763587644514,3.2078,2978.6,2978.0,1.4371]
[1763587644715,3.2078,2978.3,2978.0,1.4371]
[1763587644914,3.2078,2978.3,2977.5,3.2078]
[1763587645323,3.2078,2977.7,2977.6,0.00502951]
[1763587646023,0.00502951,2978.2,2977.6,6.00502951]
[1763587646322,3.2078,2978.1,2977.6,0.54969951]
[1763587646725,0.00502951,2978.2,2977.6,0.54969951]
[1763587646921,3.2078,2978.1,2977.6,0.54969951]
[1763587647121,3.2078,2978.9,2978.1,1.18757]
[1763587647323,3.2078,2979.2,2978.1,1.18757]
[1763587647529,3.2078,2979.5,2978.8,0.54445]
[1763587648025,3.2078,2979.5,2978.8,4.27645]
[1763587648221,0.00502951,2979.4,2978.8,4.27645]
[1763587649227,0.00502951,2979.4,2978.8,3.732]
[1763587649427,0.00502951,2979.4,2978.8,4.27645]
[1763587650227,0.00502951,2979.4,2978.9,3.732]
[1763587651022,0.00502951,2979.4,2979.1,0.54439]
[1763587651326,3.2078,2979.3,2978.6,3.732]
[1763587651516,3.2078,2979.3,2978.5,3.2078]
[1763587651721,3.2078,2979.0,2978.5,3.2078]
[1763587652329,3.2078,2978.6,2977.6,3.75749951]
[1763587652629,3.2078,2978.6,2977.7,3.732]
[1763587652830,3.2078,2978.9,2977.8,3.2078]
[1763587653126,3.2078,2978.6,2977.7,3.732]
[1763587653321,3.2078,2978.4,2977.6,0.00502951]
[1763587653522,3.2078,2978.1,2977.6,0.00502951]
[1763587653717,3.2078,2978.5,2977.6,0.54968951]
[1763587654523,3.2078,2978.5,2977.8,3.2078]
[1763587654826,0.00502951,2979.4,2978.4,3.75232]
[1763587654827,3.2078,2979.2,2978.4,3.75232]
[1763587655730,3.2078,2979.1,2978.5,2.11]
[1763587656217,3.2078,2979.2,2978.5,2.11]
[1763587656626,3.2078,2978.8,2978.5,3.732]
[1763587656929,3.2078,2978.9,2978.3,3.732]
[1763587657128,3.2078,2978.9,2978.1,3.2078]
[1763587657320,3.2078,2978.6,2977.8,3.2078]
[1763587657527,3.2078,2978.7,2977.9,3.732]
[1763587657727,3.2078,2978.4,2977.8,3.2078]
[1763587657927,3.2078,2978.4,2977.6,0.00502951]
[1763587658119,3.2078,2978.9,2977.8,3.2078]
[1763587658321,3.2078,2978.6,2977.8,6.9398]
[1763587658520,3.2078,2978.3,2977.8,3.2078]
[1763587659132,3.2078,2978.3,2977.6,0.00502951]
[1763587659434,3.2078,2977.9,2977.6,0.00502951]
[1763587661536,3.2078,2978.3,2977.6,0.00502951]
[1763587661830,3.2078,2978.3,2977.8,0.54463]
[1763587662036,3.2078,2978.3,2977.7,6.9398]
[1763587662231,3.2078,2978.3,2977.6,0.00502951]
[1763587662431,3.2078,2977.8,2977.6,0.00502951]
[1763587663837,3.2078,2977.8,2976.2,13.42872]
[1763587664037,3.2078,2977.2,2976.5,3.2078]
[1763587664731,0.00503854,2977.1,2976.6,0.00503854]
[1763587665638,3.2078,2978.2,2977.0,3.2078]
[1763587665943,3.2078,2977.6,2976.9,3.2078]
[1763587666234,3.2078,2977.6,2976.8,0.54482]
[1763587666428,3.2078,2977.3,2976.6,3.21283854]
[1763587666631,0.00503854,2977.2,2976.6,3.21283854]
[1763587667033,3.2078,2977.0,2976.6,0.00503854]
[1763587667631,0.00503854,2977.2,2976.6,3.21283854]
[1763587667841,3.21283854,2977.2,2976.6,3.21283854]
[1763587668041,0.00503854,2977.2,2976.6,3.21283854]
[1763587668434,0.00503854,2977.2,2976.9,3.2078]
[1763587668832,0.00503854,2977.2,2976.7,3.2078]
[1763587669047,0.00503854,2977.2,2976.6,0.00503854]
[1763587669241,0.00503854,2977.2,2976.6,3.75768854]
[1763587669441,0.00503854,2977.2,2976.7,3.731]
[1763587669744,0.00503854,2977.2,2976.6,3.75768854]
[1763587670332,0.00503854,2977.2,2976.6,3.21283854]
[1763587671744,3.2078,2977.1,2976.6,0.00503854]
[1763587672242,3.21283854,2977.2,2976.6,0.00503854]
[1763587673044,0.00503854,2977.2,2976.7,3.2078]
[1763587673543,0.00503854,2977.2,2976.6,0.00503854]
[1763587676143,3.21283854,2977.2,2976.6,0.00503854]
[1763587677146,0.00503854,2977.2,2977.1,3.2078]
[1763587677347,4.5958,2978.4,2977.1,3.2078]
[1763587677545,3.2078,2978.1,2977.2,3.2078]
[1763587677740,3.2078,2977.8,2976.9,3.2078]
[1763587678047,3.2078,2977.5,2976.6,3.75768854]
[1763587678250,0.00503854,2977.3,2976.6,3.75768854]
[1763587678547,3.2078,2977.2,2976.6,3.21283854]
[1763587678745,7.18853911,2976.8,2975.3,3.2078]
[1763587678942,3.2078,2976.2,2975.2,0.5451]
[1763587679140,3.2078,2975.9,2974.9,3.2078]
[1763587679337,3.2078,2975.6,2974.9,3.2078]
[1763587679745,0.00503854,2975.5,2975.0,0.00503854]
[1763587680244,3.2078,2975.3,2975.0,0.00503854]
[1763587680445,1.388,2975.2,2975.0,0.00503854]
[1763587680850,0.00431864,2975.3,2975.0,0.00503854]
[1763587681842,0.00431864,2975.3,2975.0,3.21283854]
[1763587682252,3.2078,2975.9,2975.0,3.75797854]
[1763587682453,3.2078,2976.2,2975.0,3.75797854]
[1763587682654,3.2078,2975.9,2975.1,3.728]
[1763587682945,3.2078,2975.9,2975.0,3.21283854]
[1763587683147,3.2078,2975.6,2975.0,0.00503854]
[1763587683552,0.00503854,2975.7,2975.0,0.00503854]
[1763587685450,0.00503854,2975.7,2975.0,3.21283854]
[1763587686258,0.00503854,2975.7,2975.3,0.54508]
[1763587686451,0.00503854,2975.7,2975.4,3.2078]
[1763587686756,0.00503854,2975.7,2975.4,3.75287]
[1763587686959,0.00503854,2975.7,2975.1,6.9348]
[1763587687459,0.00503854,2975.7,2975.2,3.727]
[1763587687860,3.2078,2975.6,2975.0,0.00503854]
[1763587688055,0.00503854,2975.7,2975.1,3.2078]
[1763587688353,0.00503854,2975.7,2975.1,6.9348]
[1763587690856,0.00503854,2975.7,2975.2,5.0939]
[1763587691258,0.00503854,2975.7,2975.5,3.2078]
[1763587693763,0.00503854,2975.7,2975.2,6.9328]
[1763587694151,0.00503854,2975.7,2975.2,3.2078]
[1763587694355,0.00503854,2975.7,2975.0,0.00503854]
[1763587694558,4.63483854,2975.7,2975.0,0.00503854]
[1763587694863,1.422,2975.0,2974.2,3.2078]
[1763587695169,3.2078,2974.8,2974.0,3.724]
[1763587695563,3.2078,2974.6,2973.5,3.2078]
[1763587695868,3.2078,2974.7,2973.8,0.00503854]
[1763587696061,3.2078,2974.3,2973.8,0.00503854]
[1763587697069,3.2078,2974.0,2972.8,4.1285]
[1763587697268,3.2078,2973.9,2973.1,3.2078]
[1763587697459,3.2078,2973.9,2973.0,2.29174596]
[1763587697664,3.2078,2974.5,2973.7,3.2078]
[1763587697867,3.2078,2974.2,2973.4,2.83718596]
[1763587698063,3.2078,2974.0,2973.5,0.00503854]
[1763587698369,3.2078,2973.6,2973.5,0.00503854]
[1763587698565,0.00315562,2973.6,2973.5,0.00503854]
[1763587699464,1.42515562,2973.6,2973.4,0.00256979]
[1763587699661,1.42515562,2973.6,2972.7,3.2078]
[1763587699662,3.2078,2973.5,2970.9,17.06515263]
[1763587699866,3.2078,2972.1,2971.3,3.2078]
[1763587700162,3.2078,2972.1,2971.0,2.943]
[1763587700163,3.2078,2971.7,2971.0,3.2078]
[1763587700570,0.00504719,2971.6,2971.1,0.0034029]
[1763587701272,3.2078,2971.2,2969.6,2.29174596]
[1763587701474,3.2078,2971.0,2969.7,3.2078]
[1763587701662,2.29679315,2971.6,2969.4,3.2078]
[1763587701663,3.2078,2970.5,2969.4,3.2078]
[1763587701862,6.92154596,2970.0,2968.7,3.2078]
[1763587702063,0.00504719,2969.6,2969.2,2.29174596]
[1763587702273,0.00320085,2970.0,2969.1,1.3669]
[1763587702472,3.2078,2969.8,2968.7,0.00310181]
[1763587702666,3.2078,2969.2,2968.7,0.00310181]
[1763587702975,4.6298,2972.0,2970.1,0.54604]
[1763587703168,0.00504719,2971.3,2970.8,0.00504719]
[1763587703473,3.2078,2971.2,2970.8,0.00504719]
[1763587703673,1.422,2970.9,2970.8,0.00504719]
[1763587703866,6.92448356,2970.9,2970.8,0.00264079]
[1763587704068,6.92448356,2970.9,2969.7,3.2078]
[1763587704278,3.2078,2970.3,2969.2,3.2078]
[1763587704466,3.2078,2970.3,2969.5,3.2078]
[1763587704666,3.2078,2970.6,2969.5,3.2078]
[1763587704876,0.00504719,2970.2,2969.9,3.2078]
[1763587705272,0.0029376,2970.9,2969.9,3.2078]
[1763587705576,0.0029376,2970.9,2970.4,3.2078]
[1763587705772,1.4112376,2970.9,2970.4,3.2078]
[1763587705970,1.4112376,2970.9,2970.1,3.2078]
[1763587706166,0.00504719,2970.8,2970.2,0.00504719]
[1763587706371,3.2078,2970.4,2970.2,0.00504719]
[1763587706582,3.2078,2970.4,2969.5,0.00278902]
[1763587706773,2.29174596,2969.8,2969.5,0.00278902]
[1763587706968,5.49954596,2969.8,2969.5,0.00278902]
[1763587707579,2.29174596,2969.6,2967.0,5.49954596]
[1763587707785,0.00504719,2968.6,2968.0,3.2078]
[1763587708479,0.00401256,2968.6,2968.4,3.2078]
[1763587708972,24.6161,2970.0,2968.4,3.75416]
[1763587709173,3.2078,2969.8,2968.8,3.2078]
[1763587709373,0.00504719,2969.6,2968.5,3.2078]
[1763587709782,0.00504719,2969.6,2969.1,3.2078]
[1763587710076,3.2078,2969.2,2968.3,3.2078]
[1763587710683,1.4083,2969.1,2968.3,3.2078]
[1763587711075,3.21630411,2969.6,2968.9,3.2078]
[1763587711281,20.0,2970.0,2969.2,3.2078]